bitfinex/quotes_SOLUSD_20240930
["timestamp","ask_amount","ask_price","bid_price","bid_amount"]
[1727680105941,6.3631,157.16,157.11,6.3648]
[1727680106525,6.3634,157.15,157.11,6.3648]
[1727680106742,6.3637,157.14,157.1,22.2785]
[1727680107234,20.0,157.18,157.1,22.2785]
[1727680107442,6.3634,157.15,157.1,22.2785]
[1727680107818,6.3634,157.15,157.11,1.27279059]
[1727680108741,6.3634,157.15,157.11,7.63769059]
[1727680110937,20.0,157.18,157.1,15.9133]
[1727680111159,6.3637,157.14,157.1,22.2786]
[1727680111648,6.3644,157.13,157.05,44.027864]
[1727680111821,6.3638,157.14,157.09,6.3657]
[1727680113634,6.3638,157.14,157.1,6.3653]
[1727680114642,22.4718,157.14,157.1,6.3653]
[1727680116832,16.108,157.14,157.11,7.63744219]
[1727680117134,16.108,157.14,157.12,1.27278372]
[1727680117536,16.108,157.14,157.11,7.63738513]
[1727680118325,16.108,157.14,157.11,6.3646]
[1727680119549,16.108,157.14,157.11,7.63740287]
[1727680120554,16.108,157.14,157.11,6.3646]
[1727680120756,16.108,157.14,157.11,7.63740107]
[1727680121348,16.108,157.14,157.11,1.27280107]
[1727680121548,16.108,157.14,157.1,22.278]
[1727680121549,16.108,157.14,157.1,15.9128]
[1727680121756,22.4718,157.14,157.1,23.55095427]
[1727680122655,22.4718,157.14,157.11,1.27281874]
[1727680122842,16.108,157.14,157.11,1.27281874]
[1727680123041,16.108,157.14,157.1,22.2781]
[1727680123342,22.4717,157.14,157.1,22.2781]
[1727680129058,22.4717,157.14,157.1,15.9128]
[1727680133863,16.108,157.14,157.09,6.3654]
[1727680134043,6.3644,157.13,157.08,6.366]
[1727680134962,16.108,157.14,157.07,15.9158]
[1727680135162,6.3648,157.12,157.07,22.2821]
[1727680135959,6.365,157.11,157.07,22.2821]
[1727680137061,6.3656,157.1,157.05,6.3671]
[1727680139645,20.0,157.13,157.05,6.3671]
[1727680139851,6.3658,157.09,157.05,6.3671]
[1727680140047,39.15,157.18,157.04,15.9188]
[1727680140245,6.3662,157.08,157.04,22.2863]
[1727680140664,6.6358,157.11,157.04,22.2863]
[1727680140868,6.3658,157.09,157.04,22.2863]
[1727680146172,6.6358,157.11,157.04,22.2863]
[1727680146351,6.367,157.06,157.01,15.922]
[1727680146550,6.367,157.06,157.01,22.2909]
[1727680147359,6.3679,157.04,157.0,6.3692]
[1727680148078,16.6489,157.05,156.98,22.295]
[1727680148285,6.3687,157.02,156.98,22.295]
[1727680148474,16.6489,157.05,156.98,15.9251]
[1727680148683,16.6489,157.05,156.97,6.3705]
[1727680148684,6.369,157.01,156.96,6.3707]
[1727680148858,6.3687,157.02,156.97,6.3705]
[1727680151372,6.3687,157.02,156.98,1.27390807]
[1727680151558,6.3687,157.02,156.97,6.3705]
[1727680156784,26.3681,157.04,156.98,7.64374181]
[1727680156966,6.3683,157.03,156.98,6.3698]
[1727680158272,26.3681,157.04,156.99,7.64364727]
[1727680158463,20.0,157.04,156.99,6.3698]
[1727680158674,6.3682,157.03,156.99,6.3698]
[1727680164390,6.3682,157.03,156.97,15.9258]
[1727680164692,6.3682,157.03,156.98,6.3701]
[1727680166593,6.3682,157.03,156.98,7.64394984]
[1727680167582,6.3682,157.03,156.98,6.3701]
[1727680167782,6.3682,157.03,156.98,7.6439476]
[1727680168473,6.3682,157.03,156.98,6.3701]
[1727680169989,20.0,157.04,157.0,6.3693]
[1727680170491,26.3681,157.04,156.99,6.3698]
[1727680172376,16.6489,157.05,157.01,6.3689]
[1727680173776,16.6489,157.05,157.02,1.27362472]
[1727680174200,15.2927,157.09,157.02,1.27362472]
[1727680174382,15.2927,157.09,157.03,23.902374]
[1727680174576,15.2927,157.09,157.04,1.27324036]
[1727680175595,15.2927,157.09,157.03,23.902374]
[1727680175795,15.2927,157.09,157.06,6.3669]
[1727680177206,15.2927,157.09,157.05,6.3673]
[1727680178300,15.2927,157.09,157.06,1.27321864]
[1727680178805,15.2927,157.09,157.05,6.3673]
[1727680182576,15.2927,157.09,157.06,1.27322282]
[1727680183016,15.6742,157.13,157.09,6.3657]
[1727680183320,15.6742,157.13,157.09,7.63865113]
[1727680183712,22.0384,157.13,157.09,7.63865113]
[1727680183908,15.6742,157.13,157.09,7.63865113]
[1727680184090,15.6742,157.13,157.1,1.27290467]
[1727680186512,15.6742,157.13,157.09,6.3657]
[1727680189806,22.0384,157.13,157.09,6.3657]
[1727680191301,22.0384,157.13,157.07,15.9156]
[1727680191490,6.3646,157.12,157.08,6.3661]
[1727680192415,6.365,157.11,157.07,15.9156]
[1727680192623,6.365,157.11,157.07,22.282]
[1727680193618,6.365,157.11,157.08,1.27310745]
[1727680195223,22.0384,157.13,157.08,7.63910745]
[1727680195928,15.6742,157.13,157.09,6.3655]
[1727680196101,15.6742,157.13,157.1,1.27290498]
[1727680197698,15.6742,157.13,157.09,6.3655]
[1727680200199,22.0386,157.13,157.08,6.366]
[1727680202835,6.3646,157.12,157.08,6.366]
[1727680207155,20.0,157.16,157.1,15.9134]
[1727680207450,6.363,157.16,157.11,7.63740246]
[1727680207940,16.217,157.17,157.13,6.3641]
[1727680208267,16.217,157.17,157.13,7.63674159]
[1727680208752,16.217,157.17,157.13,1.27264159]
[1727680208974,16.217,157.17,157.11,1.27258382]
[1727680209252,6.3624,157.18,157.11,1.27258382]
[1727680210052,6.3624,157.18,157.12,10.13361402]
[1727680210359,6.3624,157.18,157.13,6.3641]
[1727680210931,6.3624,157.18,157.14,1.2726031]
[1727680212137,6.3617,157.19,157.14,7.6363031]
[1727680212331,6.3617,157.19,157.15,1.27249845]
[1727680213247,6.3617,157.19,157.15,7.63579845]
[1727680213438,6.3617,157.19,157.15,6.3633]
[1727680213636,15.6858,157.25,157.16,11.4061031]
[1727680213842,15.6858,157.25,157.17,20.0]
[1727680214054,22.0454,157.25,157.18,7.63385384]
[1727680214569,22.0454,157.25,157.19,6.3614]
[1727680214742,22.0454,157.25,157.2,1.27210893]
[1727680215147,22.0454,157.25,157.19,6.3614]
[1727680216048,6.3596,157.25,157.19,6.3614]
[1727680216367,6.3596,157.25,157.2,1.27206984]
[1727680217571,6.3596,157.25,157.19,6.3614]
[1727680218365,43.776884,157.28,157.17,30.13361402]
[1727680218671,6.3598,157.24,157.18,30.264274]
[1727680219175,6.3591,157.26,157.19,26.3616]
[1727680219349,6.3593,157.25,157.19,27.63366853]
[1727680220746,6.3587,157.27,157.19,21.27206853]
[1727680220951,6.3587,157.27,157.22,6.3605]
[1727680221664,24.1669152,157.3,157.26,10.13361402]
[1727680221857,0.3900312,157.3,157.28,6.3577]
[1727680222049,0.3900312,157.3,157.28,6.3578]
[1727680222669,0.3900312,157.3,157.28,26.3579]
[1727680222973,0.3900312,157.3,157.25,10.13361402]
[1727680223554,0.3900312,157.3,157.26,20.0]
[1727680223759,0.3900312,157.3,157.25,20.0]
[1727680224154,0.3900312,157.3,157.26,6.3586]
[1727680224870,0.3900312,157.3,157.27,1.27152733]
[1727680229660,0.3900312,157.3,157.27,7.62952733]
[1727680229979,0.3900312,157.3,157.28,1.2715241]
[1727680230363,0.3900312,157.3,157.28,7.6294241]
[1727680231362,0.3900312,157.3,157.28,6.3579]
[1727680232178,0.3900312,157.3,157.29,1.27130868]
[1727680232560,0.3900312,157.3,157.29,7.62890868]
[1727680233488,16.492,157.4,157.37,6.3544]
[1727680233663,16.492,157.4,157.33,6.3557]
[1727680233859,16.492,157.4,157.34,20.0]
[1727680234270,16.492,157.4,157.3,12.904]
[1727680234472,6.3539,157.39,157.31,26.3566]
[1727680234677,6.3539,157.39,157.33,20.0]
[1727680234888,6.3539,157.39,157.32,6.3564]
[1727680237987,16.492,157.4,157.31,26.3568]
[1727680238288,6.354,157.38,157.31,26.3568]
[1727680238587,23.776884,157.39,157.32,1.27112889]
[1727680238760,30.130484,157.39,157.32,1.27112889]
[1727680240271,30.130484,157.39,157.31,26.3568]
[1727680240479,30.130484,157.39,157.32,1.27112905]
[1727680242967,30.130484,157.39,157.32,6.3564]
[1727680243579,16.492,157.4,157.35,10.13361402]
[1727680243891,16.492,157.4,157.29,0.12549]
[1727680243892,15.4632,157.44,157.36,21.27076124]
[1727680244091,6.3536,157.39,157.33,20.0]
[1727680244392,15.4632,157.44,157.33,20.0]
[1727680244576,6.3524,157.43,157.34,7.6266046]
[1727680245184,23.776884,157.42,157.34,7.6266046]
[1727680245687,23.776884,157.41,157.34,7.6266046]
[1727680246559,0.12549,157.43,157.34,1.2710046]
[1727680246764,15.4632,157.44,157.33,20.0]
[1727680246965,15.4632,157.44,157.34,0.12549]
[1727680247763,15.4632,157.44,157.37,6.3543]
[1727680247978,15.4632,157.44,157.36,20.0]
[1727680248176,23.776884,157.43,157.33,20.0]
[1727680248365,21.8151,157.44,157.36,20.0]
[1727680248587,30.128884,157.43,157.36,20.0]
[1727680250985,30.128884,157.43,157.36,6.3548]
[1727680254805,30.128884,157.43,157.35,26.3552]
[1727680255233,6.3526,157.42,157.35,26.3552]
[1727680255512,23.776884,157.43,157.34,6.3556]
[1727680255513,6.3529,157.41,157.34,6.3556]
[1727680256922,23.776884,157.43,157.34,6.3556]
[1727680256923,6.3525,157.42,157.34,6.3556]
[1727680257215,6.3525,157.42,157.34,20.0]
[1727680257517,6.3525,157.42,157.35,6.3552]
[1727680257897,23.776884,157.43,157.36,1.2708639]
[1727680258213,30.128984,157.43,157.36,6.3548]
[1727680258716,6.3528,157.41,157.35,20.0]
[1727680259215,6.3528,157.42,157.34,6.3556]
[1727680260932,6.3528,157.42,157.35,6.3552]
[1727680261618,6.3528,157.41,157.35,6.3552]
[1727680262014,6.3528,157.41,157.34,6.3555]
[1727680262206,6.3528,157.41,157.35,8.23351296]
[1727680262404,6.3528,157.41,157.34,6.3555]
[1727680262625,6.3533,157.4,157.35,8.23351435]
[1727680262803,6.3536,157.39,157.33,6.3559]
[1727680263117,15.6456,157.38,157.33,20.0]
[1727680263300,21.9996,157.38,157.34,8.23957677]
[1727680263499,15.6456,157.38,157.33,20.0]
[1727680263705,15.6456,157.38,157.34,6.3555]
[1727680264112,15.6456,157.38,157.35,8.245525]
[1727680264310,15.6456,157.38,157.34,6.3555]
[1727680264510,15.6456,157.38,157.35,8.24552501]
[1727680264711,15.6456,157.38,157.34,6.3555]
[1727680264915,15.6456,157.38,157.35,8.24553746]
[1727680265112,15.6456,157.38,157.34,6.3555]
[1727680265322,15.6456,157.38,157.35,8.25344876]
[1727680265522,15.6456,157.38,157.34,6.3555]
[1727680265727,15.6456,157.38,157.35,8.2534439]
[1727680266019,15.6456,157.38,157.34,6.3555]
[1727680266226,15.6456,157.38,157.35,8.26259392]
[1727680266418,15.6456,157.38,157.34,6.3555]
[1727680266625,15.6456,157.38,157.35,8.26258631]
[1727680266831,15.6456,157.38,157.36,8.26258631]
[1727680267127,15.6456,157.38,157.34,6.3555]
[1727680267314,15.6456,157.38,157.35,8.27389809]
[1727680267514,15.6456,157.38,157.36,8.27389809]
[1727680267818,15.6456,157.38,157.34,6.3555]
[1727680268014,15.6456,157.38,157.35,8.27397073]
[1727680268223,15.6456,157.38,157.36,8.27397073]
[1727680268437,15.6456,157.38,157.34,6.3555]
[1727680268726,15.6456,157.38,157.35,8.27642687]
[1727680268932,15.6456,157.38,157.34,6.3555]
[1727680268933,15.6456,157.38,157.36,8.27642687]
[1727680269104,15.6456,157.38,157.3,6.456]
[1727680269306,15.6456,157.38,157.32,6.3561]
[1727680269637,15.6456,157.38,157.33,8.27842331]
[1727680269933,15.6456,157.38,157.34,8.27842331]
[1727680270104,15.6456,157.38,157.35,8.27842331]
[1727680270304,15.6456,157.38,157.33,6.3558]
[1727680270612,15.6456,157.38,157.34,8.28112738]
[1727680270816,15.6456,157.38,157.35,8.28112738]
[1727680271008,15.6456,157.38,157.33,6.3558]
[1727680271234,15.6456,157.38,157.34,8.28378567]
[1727680271526,15.6456,157.38,157.36,6.3548]
[1727680271832,23.776884,157.41,157.36,6.3548]
[1727680272125,16.0411,157.42,157.36,6.3548]
[1727680272341,16.0411,157.42,157.35,10.13361402]
[1727680272506,16.0411,157.42,157.37,6.3544]
[1727680273238,16.0411,157.42,157.37,10.13361402]
[1727680273437,15.99,157.47,157.42,26.3521]
[1727680273608,15.99,157.47,157.42,20.0]
[1727680274232,6.349,157.51,157.43,1.27040083]
[1727680274530,6.349,157.51,157.44,6.3515]
[1727680274704,15.99,157.52,157.44,6.3515]
[1727680274909,22.3384,157.52,157.44,6.3515]
[1727680275210,15.99,157.52,157.45,6.3512]
[1727680275409,22.3384,157.52,157.45,6.3512]
[1727680275733,22.3384,157.52,157.43,7.62180479]
[1727680275917,22.3384,157.52,157.44,6.3514]
[1727680277007,22.3384,157.52,157.43,1.27020479]
[1727680277219,15.99,157.52,157.45,6.3512]
[1727680277418,15.99,157.52,157.45,27.62127233]
[1727680279513,15.99,157.52,157.45,26.47669]
[1727680281411,15.99,157.52,157.45,50.379064]
[1727680281615,22.9157,157.56,157.45,50.379064]
[1727680282737,6.3474,157.55,157.45,26.60218]
[1727680282915,6.348,157.53,157.45,26.3512]
[1727680283111,6.3476,157.54,157.45,36.48481402]
[1727680284531,6.3472,157.55,157.45,38.00571572]
[1727680284835,6.3476,157.54,157.45,26.3512]
[1727680285027,6.3476,157.54,157.45,36.48481402]
[1727680285944,16.5689,157.56,157.45,36.73579402]
[1727680285945,22.916,157.56,157.45,36.73579402]
[1727680288145,16.5689,157.56,157.45,36.73579402]
[1727680288345,6.3473,157.55,157.45,36.73579402]
[1727680288844,6.348,157.53,157.45,26.3512]
[1727680289142,6.3485,157.52,157.45,26.3512]
[1727680290247,20.0,157.55,157.45,26.3512]
[1727680290447,6.3482,157.53,157.45,26.3512]
[1727680290753,16.5689,157.56,157.45,26.3512]
[1727680290930,16.5689,157.56,157.45,51.64891635]
[1727680291123,16.5689,157.56,157.45,59.13858329]
[1727680291853,16.5689,157.56,157.45,57.86873094]
[1727680292153,16.5689,157.56,157.45,59.13847717]
[1727680292349,16.5689,157.56,157.45,51.64881023]
[1727680298443,16.5689,157.56,157.45,50.379064]
[1727680298649,16.5689,157.56,157.45,51.64872854]
[1727680299062,16.5689,157.56,157.45,81.64872854]
[1727680300342,16.5689,157.56,157.45,87.83892854]
[1727680302263,22.916,157.56,157.45,86.569264]
[1727680302463,16.5689,157.56,157.45,66.48481402]
[1727680303852,16.4157,157.5,157.45,36.48481402]
[1727680305149,16.4157,157.5,157.45,36.73579402]
[1727680305975,15.8639,157.54,157.49,20.0]
[1727680306163,15.8639,157.54,157.53,6.3479]
[1727680313167,15.7822,157.6,157.53,20.0]
[1727680313473,15.7822,157.6,157.55,10.13361402]
[1727680313656,15.7822,157.6,157.56,21.26916961]
[1727680313858,15.7822,157.6,157.56,20.0]
[1727680314469,15.7822,157.6,157.58,6.3459]
[1727680314770,15.7822,157.6,157.57,6.3463]
[1727680317872,15.7822,157.6,157.56,20.0]
[1727680318171,15.7822,157.6,157.58,6.3456]
[1727680318658,15.7822,157.6,157.59,6.3455]
[1727680319267,0.8164948,157.61,157.59,20.0]
[1727680319456,0.8164948,157.61,157.6,6.3451]
[1727680319782,0.8164948,157.61,157.6,26.3451]
[1727680320078,0.8164948,157.61,157.6,6.3451]
[1727680320458,0.8164948,157.61,157.59,6.3452]
[1727680323554,0.8164948,157.61,157.58,27.8708889]
[1727680323773,0.8164948,157.61,157.58,7.8708889]
[1727680324056,0.8164948,157.61,157.57,7.87697289]
[1727680325077,0.8164948,157.61,157.59,6.3455]
[1727680325682,0.8164948,157.61,157.57,7.87697289]
[1727680325683,16.0519,157.6,157.57,7.87697289]
[1727680325866,16.0519,157.6,157.56,6.3464]
[1727680327370,16.0519,157.6,157.53,7.87697289]
[1727680327569,16.0519,157.6,157.57,6.3462]
[1727680327794,16.0519,157.6,157.56,6.3466]
[1727680328393,16.0519,157.6,157.59,6.3455]
[1727680330198,16.0519,157.6,157.58,6.3458]
[1727680330882,16.0519,157.6,157.57,6.3463]
[1727680331084,16.0519,157.6,157.58,6.3459]
[1727680332292,16.0519,157.6,157.53,20.0]
[1727680332495,16.0519,157.6,157.54,8.23652553]
[1727680332684,16.0519,157.6,157.51,7.88543185]
[1727680332685,16.0519,157.6,157.52,8.23652553]
[1727680332890,16.0519,157.6,157.53,8.23652553]
[1727680333195,16.0519,157.6,157.59,6.3455]
[1727680334776,0.8164948,157.61,157.6,6.3451]
[1727680342308,0.8164948,157.61,157.6,11.49445262]
[1727680346701,0.8164948,157.61,157.6,11.49594933]
[1727680357109,0.8164948,157.61,157.6,39.38716903]
[1727680357412,0.8164948,157.61,157.6,39.40442377]
[1727680357612,0.8164948,157.61,157.6,49.53828186]
[1727680358197,0.8164948,157.61,157.6,41.62980742]
[1727680358727,0.8164948,157.61,157.6,49.54085836]
[1727680358919,0.8164948,157.61,157.6,26.3451]
[1727680359091,0.8164948,157.61,157.6,31.50897782]
[1727680360899,0.8164948,157.61,157.6,39.41999645]
[1727680361603,9.48e-05,157.61,157.6,39.41999645]
[1727680361811,9.48e-05,157.61,157.6,32.90315468]
[1727680362021,9.48e-05,157.61,157.6,33.02943738]
[1727680362193,9.48e-05,157.61,157.6,56.80632138]
[1727680362587,9.48e-05,157.61,157.6,55.53544621]
[1727680362901,9.48e-05,157.61,157.6,31.75900837]
[1727680363999,9.48e-05,157.61,157.6,31.7586752]
[1727680364190,9.48e-05,157.61,157.6,56.80421058]
[1727680365320,9.48e-05,157.61,157.6,56.8014772]
[1727680370220,0.64020487,157.67,157.6,49.18772582]
[1727680370435,0.64020487,157.67,157.66,6.3427]
[1727680370728,0.64020487,157.67,157.66,11.50256182]
[1727680375116,0.64020487,157.67,157.66,11.4915621]
[1727680377338,0.64020487,157.67,157.66,41.62542019]
[1727680377804,0.64020487,157.67,157.66,41.87640019]
[1727680378317,0.64020487,157.67,157.66,49.7483716]
[1727680378623,0.64020487,157.67,157.66,36.72753809]
[1727680378916,0.64020487,157.67,157.66,44.6044418]
[1727680379127,0.64020487,157.67,157.66,57.62357182]
[1727680379618,0.64020487,157.67,157.66,31.48466503]
[1727680380830,0.64020487,157.67,157.66,39.36183002]
[1727680381406,0.64020487,157.67,157.66,40.63008178]
[1727680381609,0.64020487,157.67,157.66,40.75557178]
[1727680381805,4.87e-06,157.67,157.66,40.88099126]
[1727680382007,15.87,157.75,157.74,6.3395]
[1727680382531,1.0891371,157.77,157.74,6.3395]
[1727680382532,1.0891371,157.77,157.76,6.3387]
[1727680382823,1.0891371,157.77,157.76,31.46642859]
[1727680383127,1.0891371,157.77,157.76,26.3387]
[1727680385831,1.0891371,157.77,157.76,20.0]
[1727680386004,1.0891371,157.77,157.76,26.3387]
[1727680386605,1.0891371,157.77,157.76,26.46419]
[1727680386923,1.0891371,157.77,157.76,26.3387]
[1727680389013,1.0891371,157.77,157.72,10.13385809]
[1727680389014,1.0891371,157.77,157.73,20.0]
[1727680389312,1.0891371,157.77,157.76,26.3387]
[1727680390328,1.0891371,157.77,157.72,10.13385809]
[1727680390515,1.0891371,157.77,157.75,6.3391]
[1727680391239,1.0891371,157.77,157.69,5.09965772]
[1727680391240,1.0891371,157.77,157.76,6.3387]
[1727680391447,1.0891371,157.77,157.76,7.60651345]
[1727680391937,1.0891371,157.77,157.76,27.60651345]
[1727680392112,1.0891371,157.77,157.76,27.73200345]
[1727680393328,1.0891371,157.77,157.76,51.63437745]
[1727680393638,1.0891371,157.77,157.76,50.366564]
[1727680395021,1.0891371,157.77,157.76,55.4539336]
[1727680397927,1.0891371,157.77,157.76,6.3387]
[1727680399523,1.0891371,157.77,157.76,26.3387]
[1727680400247,1.0891371,157.77,157.76,26.58968]
[1727680400733,1.0891371,157.77,157.76,31.67282571]
[1727680402142,1.0891371,157.77,157.76,31.67129863]
[1727680402536,1.0891371,157.77,157.76,31.42031863]
[1727680402731,1.0891371,157.77,157.76,26.3387]
[1727680403152,1.0891371,157.77,157.69,14.37137504]
[1727680403339,1.0891371,157.77,157.7,35.08536686]
[1727680403540,1.0891371,157.77,157.75,6.3387]
[1727680404062,1.0891371,157.77,157.74,6.3395]
[1727680404552,1.0891371,157.77,157.73,6.3399]
[1727680405641,7.4275371,157.77,157.7,20.0]
[1727680405838,6.3388,157.76,157.71,6.3404]
[1727680406490,12.7276,157.76,157.71,11.43297931]
[1727680406634,16.5174,157.74,157.68,6.63103721]
[1727680406834,16.5174,157.74,157.69,6.3414]
[1727680407052,6.3403,157.73,157.67,11.43596427]
[1727680407258,6.3403,157.73,157.67,6.3422]
[1727680407430,6.3403,157.73,157.67,11.43596427]
[1727680407635,6.3403,157.73,157.67,6.3422]
[1727680407834,6.3403,157.73,157.67,5.09376427]
[1727680408043,6.3403,157.73,157.68,6.3419]
[1727680408349,16.5174,157.74,157.68,6.3419]
[1727680408548,6.3399,157.73,157.68,6.3419]
[1727680410241,16.5174,157.74,157.63,21.26838734]
[1727680410441,16.5174,157.74,157.64,20.0]
[1727680410637,22.857,157.74,157.68,6.3415]
[1727680411364,6.3399,157.73,157.68,6.3415]
[1727680412047,6.3407,157.71,157.66,6.3427]
[1727680413148,6.3404,157.72,157.67,6.3423]
[1727680413965,16.193,157.7,157.66,6.3427]
[1727680414836,16.193,157.7,157.69,6.3415]
[1727680416143,15.6276,157.74,157.66,20.25098]
[1727680416344,15.6276,157.74,157.67,1.26804499]
[1727680416846,15.6276,157.74,157.66,20.25098]
[1727680417040,15.6276,157.74,157.66,0.25098]
[1727680417245,15.6276,157.74,157.7,6.3407]
[1727680417465,15.6276,157.74,157.71,6.3406]
[1727680420239,15.6276,157.74,157.72,6.34]
[1727680420443,15.6276,157.74,157.73,6.3399]
[1727680426956,15.6276,157.74,157.67,15.79978852]
[1727680426957,15.6276,157.74,157.66,0.25098]
[1727680427154,15.6276,157.74,157.65,20.0]
[1727680427493,15.6276,157.74,157.73,6.3399]
[1727680434175,1.0891371,157.77,157.76,6.3387]
[1727680443768,1.0891371,157.77,157.72,10.12256763]
[1727680444093,1.0891371,157.77,157.75,6.3391]
[1727680444887,1.0891371,157.77,157.76,6.3387]
[1727680451006,1.0891371,157.77,157.76,26.3387]
[1727680451185,1.0891371,157.77,157.76,27.60608606]
[1727680453893,1.0891371,157.77,157.76,26.3387]
[1727680454587,1.0891371,157.77,157.76,27.60604255]
[1727680455304,1.0891371,157.77,157.76,27.85702255]
[1727680456575,1.0891371,157.77,157.76,26.58968]
[1727680460413,1.0891371,157.77,157.76,26.3387]
[1727680463306,1.0891371,157.77,157.76,26.58968]
[1727680463805,1.0891371,157.77,157.76,26.3387]
[1727680464314,1.0891371,157.77,157.76,27.60608523]
[1727680465500,3.71e-05,157.77,157.76,50.366564]
[1727680465701,3.71e-05,157.77,157.76,57.91172579]
[1727680466017,3.71e-05,157.77,157.76,56.644664]
[1727680468887,3.71e-05,157.77,157.76,57.91176295]
[1727680469300,3.71e-05,157.77,157.76,56.644664]
[1727680469607,3.71e-05,157.77,157.76,61.77674208]
[1727680470584,3.71e-05,157.77,157.76,72.03898509]
[1727680472703,3.71e-05,157.77,157.76,56.644664]
[1727680473011,3.71e-05,157.77,157.76,72.03646433]
[1727680473307,3.71e-05,157.77,157.76,21.73050033]
[1727680473506,3.71e-05,157.77,157.76,11.46930011]
[1727680473916,3.71e-05,157.77,157.76,21.73050033]
[1727680474488,3.71e-05,157.77,157.76,11.46930011]
[1727680474817,3.71e-05,157.77,157.76,21.73050033]
[1727680475017,3.71e-05,157.77,157.76,11.46930011]
[1727680475519,3.71e-05,157.77,157.76,21.73050033]
[1727680475814,3.71e-05,157.77,157.76,6.3387]
[1727680476116,3.71e-05,157.77,157.76,11.47459025]
[1727680477126,3.71e-05,157.77,157.76,5.13589025]
[1727680479004,28.1268371,157.77,157.73,10.27587802]
[1727680479332,21.7885371,157.77,157.73,16.61905825]
[1727680479822,21.7885371,157.77,157.71,10.27915825]
[1727680480024,28.1269371,157.77,157.72,16.61945825]
[1727680480216,28.1269371,157.77,157.72,6.3403]
[1727680480809,6.3388,157.76,157.71,10.27915825]
[1727680481035,6.3388,157.76,157.7,16.62025825]
[1727680481236,21.7885371,157.77,157.7,6.3411]
[1727680481237,6.3391,157.75,157.7,6.3411]
[1727680481405,15.1545,157.76,157.68,16.62065825]
[1727680481932,15.1545,157.76,157.68,6.3415]
[1727680482427,15.1545,157.73,157.68,6.3415]
[1727680482843,15.2290997,157.73,157.68,6.3415]
[1727680483023,21.5690997,157.73,157.66,10.03037365]
[1727680483208,21.5690997,157.73,157.67,10.03055459]
[1727680483534,21.5690997,157.73,157.68,6.3418]
[1727680486525,6.3404,157.72,157.67,6.3423]
[1727680486718,6.044,157.71,157.67,6.3423]
[1727680487526,6.044,157.71,157.62,16.75877662]
[1727680487729,6.044,157.71,157.68,6.3419]
[1727680489042,6.044,157.71,157.64,10.12256763]
[1727680489223,6.044,157.71,157.7,6.3411]
[1727680489534,27.3942,157.71,157.62,6.63620899]
[1727680489735,27.3942,157.71,157.63,1.26822196]
[1727680489736,21.0534,157.71,157.63,1.26822196]
[1727680490846,21.0534,157.71,157.65,10.12256763]
[1727680491145,15.0094,157.71,157.67,10.12256763]
[1727680492026,15.0094,157.71,157.65,10.12256763]
[1727680493840,15.0094,157.71,157.64,20.0]
[1727680494015,15.0094,157.71,157.65,10.12256763]
[1727680494215,15.0094,157.71,157.66,5.00253854]
[1727680494720,15.0094,157.71,157.65,10.12256763]
[1727680496069,15.0094,157.71,157.64,20.0]
[1727680496070,15.0094,157.71,157.67,10.12256763]
[1727680496249,15.0094,157.71,157.68,1.26814787]
[1727680497147,0.0745997,157.73,157.68,0.12549]
[1727680498425,0.0745997,157.73,157.64,27.85494786]
[1727680498619,0.0745997,157.73,157.66,0.12549]
[1727680499133,0.0745997,157.73,157.65,33.89945163]
[1727680500229,0.0745997,157.73,157.64,27.97272221]
[1727680501043,0.0745997,157.73,157.68,10.12256763]
[1727680501634,0.0745997,157.73,157.68,0.12549]
[1727680501873,0.0745997,157.73,157.67,24.027864]
[1727680502019,0.0745997,157.73,157.66,20.12549]
[1727680502440,0.0745997,157.73,157.67,10.12256763]
[1727680502631,0.0745997,157.73,157.67,11.39071196]
[1727680502826,0.0745997,157.73,157.67,10.12256763]
[1727680503040,0.0745997,157.73,157.68,21.26813487]
[1727680503343,0.0745997,157.73,157.69,10.12256763]
[1727680503526,0.0745997,157.73,157.71,10.12256763]
[1727680503730,0.0745997,157.73,157.72,1.26782728]
[1727680504247,0.0745997,157.73,157.71,10.12256763]